bitfinex/quotes_ETHUSD_20250107
["timestamp","ask_amount","ask_price","bid_price","bid_amount"]
[1736264270491,3.40189,3515.7,3514.9,0.0075]
[1736264270852,3.40189,3515.7,3514.4,0.55504478]
[1736264270853,2.84515,3514.8,3513.1,2.85641]
[1736264270993,2.84486,3515.2,3514.1,2.84566]
[1736264271191,1.5953,3515.7,3514.3,2.84551]
[1736264271390,1.5953,3515.7,3514.4,0.02844949]
[1736264271915,1.5953,3515.7,3514.9,2.84501]
[1736264272158,0.0075,3515.6,3514.6,0.3526]
[1736264272442,0.05111898,3515.6,3515.0,0.56466555]
[1736264272742,0.05111898,3515.6,3515.1,0.0075]
[1736264272939,0.05111898,3515.6,3514.4,2.84542]
[1736264273143,0.0075,3515.4,3514.4,0.284542]
[1736264273303,0.0075,3515.2,3514.4,0.56551947]
[1736264273506,2.84471,3515.3,3514.4,0.56551947]
[1736264273731,0.04371771,3515.1,3514.4,0.56551947]
[1736264273943,2.84454,3515.5,3513.5,0.3526]
[1736264273944,2.8453,3514.6,3513.5,0.3526]
[1736264274172,2.84543,3514.4,3514.3,0.1]
[1736264274820,0.04360339,3514.4,3514.3,0.1]
[1736264275023,0.55,3514.6,3514.4,0.0075]
[1736264275268,0.24999999,3516.5,3514.3,0.1075]
[1736264275269,0.04178744,3514.5,3514.3,0.1]
[1736264275411,2.84509,3514.9,3514.3,0.1]
[1736264275635,0.0075,3514.6,3514.3,0.1]
[1736264276079,0.0075,3514.4,3514.3,0.1]
[1736264276277,0.03964764,3514.5,3514.3,0.1]
[1736264276588,2.84543,3514.4,3514.3,0.1]
[1736264276748,2.88507764,3514.4,3514.3,0.1]
[1736264276956,0.03964764,3514.4,3514.3,0.1]
[1736264277200,3.43507764,3514.4,3514.3,0.1]
[1736264277497,3.9336754,3514.4,3514.3,0.1]
[1736264277690,2.84616,3513.5,3513.1,0.01]
[1736264277991,4.58844973,3514.4,3513.1,0.01]
[1736264278292,4.08985197,3514.9,3513.2,0.0075]
[1736264278467,2.84535,3514.5,3513.3,2.84632]
[1736264278636,2.84518,3514.8,3513.5,0.0075]
[1736264278831,6.93489197,3514.9,3513.5,0.0075]
[1736264278832,3.43488764,3514.7,3513.5,0.0075]
[1736264279086,2.8455,3514.4,3513.5,0.0075]
[1736264279288,2.8455,3514.4,3513.6,0.0075]
[1736264279507,1.3575125,3516.1,3513.6,0.0075]
[1736264279508,0.03964764,3514.3,3513.9,0.0075]
[1736264279943,2.84504,3514.9,3513.9,2.85332]
[1736264280138,2.84504,3514.9,3514.1,0.0075]
[1736264280442,0.03964764,3514.8,3514.2,2.84558]
[1736264280656,4.08985197,3516.4,3514.4,0.0075]
[1736264280997,2.84397,3516.2,3514.3,3.13358336]
[1736264281192,0.55,3515.7,3514.1,0.3601]
[1736264281401,1.6374,3515.8,3514.7,0.58095161]
[1736264281744,1.6374,3515.8,3514.1,0.3601]
[1736264281745,2.84446,3515.6,3514.1,0.3601]
[1736264281949,2.84446,3515.6,3513.4,0.02845084]
[1736264281950,2.84544,3514.4,3513.3,2.84624]
[1736264282282,2.84509,3514.9,3513.4,0.0075]
[1736264282283,0.03992333,3514.3,3513.4,0.0075]
[1736264282586,5.84478,3515.2,3513.4,0.0075]
[1736264282587,2.84514,3514.8,3513.9,0.0075]
[1736264282769,0.03992333,3514.2,3513.9,0.0075]
[1736264282977,2.84517,3514.8,3513.9,0.0075]
[1736264283149,0.03969966,3514.1,3513.9,0.0075]
[1736264283344,1.6374,3515.3,3514.0,0.57558996]
[1736264283345,2.84545,3514.4,3514.0,0.57558996]
[1736264283586,0.03969966,3514.0,3513.2,3.20648]
[1736264283885,0.55,3514.0,3513.1,0.01]
[1736264284090,0.55,3513.8,3513.1,0.01]
[1736264284246,0.03968926,3513.7,3513.1,0.01]
[1736264284448,2.84591,3513.9,3513.2,0.0075]
[1736264284662,2.84602,3513.7,3513.2,0.0075]
[1736264284856,0.28857093,3513.7,3513.2,0.0075]
[1736264285056,2.8464,3513.2,3513.1,0.01]
[1736264285299,2.88555325,3513.2,3513.1,0.0025]
[1736264285799,1.5366,3512.8,3510.7,1.18177589]
[1736264286084,2.84746,3511.9,3510.7,1.18177589]
[1736264286287,2.84775,3511.6,3510.8,0.02848216]
[1736264286465,2.84775,3511.6,3510.7,1.18177589]
[1736264286466,0.03797163,3511.5,3510.7,1.18177589]
[1736264286857,2.84791,3511.4,3510.8,0.0075]
[1736264287083,2.8477,3511.6,3510.8,0.03597984]
[1736264287286,1.1321342,3511.9,3510.8,0.0075]
[1736264287287,0.03797163,3511.5,3510.8,0.0075]
[1736264287471,0.03797163,3511.5,3510.5,2.710974]
[1736264287472,2.84787,3511.4,3510.6,0.0075]
[1736264287675,0.03797163,3511.3,3510.6,0.0075]
[1736264287865,2.84762,3511.7,3510.6,0.0075]
[1736264288063,0.55,3511.5,3510.6,0.0075]
[1736264288266,2.84843,3510.7,3509.5,3.21698]
[1736264288585,0.03727879,3510.6,3509.5,3.21696]
[1736264288889,2.84862,3510.5,3509.6,0.0075]
[1736264289097,0.03712765,3510.4,3509.6,0.0075]
[1736264289292,0.02962765,3510.4,3509.8,0.0075]
[1736264289451,6.93758197,3511.6,3509.8,0.0075]
[1736264289452,1.6638,3511.6,3509.8,0.03598352]
[1736264289655,1.6638,3511.6,3509.7,0.57923546]
[1736264289656,0.03476776,3511.5,3509.9,0.3676]
[1736264289865,0.55,3511.4,3509.9,0.3676]
[1736264290080,0.0345904,3511.3,3510.0,0.02848607]
[1736264290290,2.84832,3510.9,3510.0,0.02848607]
[1736264290469,2.88292997,3510.8,3510.0,0.0075]
[1736264290658,2.88292997,3510.8,3510.0,0.03598608]
[1736264290855,2.8486,3510.5,3510.0,0.03598608]
[1736264291054,0.02704345,3510.4,3509.7,0.60772165]
[1736264291376,2.84807,3511.2,3509.8,0.0075]
[1736264291581,0.03428823,3510.3,3510.2,0.0075]
[1736264291783,0.55,3511.4,3510.2,0.0075]
[1736264291981,2.84786,3511.4,3510.2,0.0075]
[1736264292216,0.55,3511.2,3509.7,0.57923546]
[1736264292576,2.84851,3510.7,3509.7,0.57923546]
[1736264292881,2.8487,3510.4,3509.5,0.3676]
[1736264293067,1.5347,3510.9,3509.5,0.3676]
[1736264293068,0.03287181,3510.3,3509.6,0.02849028]
[1736264293273,3.0,3511.0,3509.6,0.02849028]
[1736264293274,3.0,3511.0,3509.6,0.32532982]
[1736264293485,0.03287181,3510.9,3509.8,0.0075]
[1736264293999,3.0,3511.5,3509.9,0.0075]
[1736264294202,0.03287181,3510.8,3510.1,0.0075]
[1736264294497,0.03119948,3510.7,3510.4,0.3751]
[1736264294698,4.38243,3511.6,3510.6,0.0075]
[1736264295003,0.03119948,3511.5,3510.8,0.0075]
[1736264295302,2.8478,3511.5,3511.1,0.0075]
[1736264295626,0.03119948,3511.4,3510.4,0.3676]
[1736264295760,0.55,3511.3,3510.0,0.3751]
[1736264296097,0.03116615,3511.2,3510.2,0.55908643]
[1736264296399,2.84814,3511.1,3510.2,0.55908643]
[1736264296697,0.03116615,3511.1,3510.3,2.884734]
[1736264296882,2.84738,3512.0,3510.4,0.33787804]
[1736264297086,2.84802,3511.3,3510.2,0.55908643]
[1736264297256,2.84799,3511.3,3510.3,0.02848247]
[1736264297468,0.03116615,3511.2,3510.4,0.0075]
[1736264298083,1.638,3511.6,3510.3,0.0284816]
[1736264298284,0.03116615,3511.5,3510.2,0.55258243]
[1736264298457,2.84808,3511.2,3510.2,0.55258243]
[1736264298658,1.638,3511.6,3510.3,0.03598364]
[1736264298913,0.03116615,3511.5,3510.7,0.3751]
[1736264299073,0.03116615,3511.5,3510.8,2.87682425]
[1736264299273,2.84695,3512.6,3511.4,2.84783]
[1736264299571,0.03116615,3512.5,3511.2,0.3751]
[1736264299805,2.84764,3511.7,3511.2,0.3751]
[1736264299955,0.03116615,3512.5,3511.5,0.56335137]
[1736264299956,0.55,3512.0,3511.5,0.56335137]
[1736264300156,0.03116615,3511.6,3510.1,4.08985197]
[1736264300364,1.6252,3512.8,3511.6,0.0075]
[1736264300672,2.84754,3511.8,3511.6,0.0075]
[1736264301016,2.84754,3511.8,3511.2,0.56335137]
[1736264301017,0.55,3512.6,3511.1,0.0075]
[1736264301315,2.84783,3511.5,3511.1,0.0075]
[1736264301476,2.84796,3511.3,3511.0,0.55787351]
[1736264301671,0.03279572,3511.2,3509.8,3.3601]
[1736264301912,2.84827,3510.9,3509.8,2.84908]
[1736264302093,2.84808,3511.2,3509.9,0.02848395]
[1736264302428,4.5777,3511.8,3510.4,0.0075]
[1736264302429,0.03262864,3511.1,3510.4,0.0075]
[1736264302804,0.55,3511.7,3510.6,0.0075]
[1736264303128,0.55,3511.7,3510.5,0.3686]
[1736264303129,0.55,3511.5,3510.5,0.3686]
[1736264303336,0.55,3511.5,3510.3,0.57754632]
[1736264303490,2.84859,3510.5,3510.4,0.0075]
[1736264303691,3.39859,3510.5,3510.4,0.0075]
[1736264303891,2.8810202,3510.5,3510.4,0.0075]
[1736264304118,0.0324302,3510.5,3510.4,0.0075]
[1736264304406,1.655,3511.3,3510.4,0.0075]
[1736264304606,1.655,3511.3,3510.5,0.3686]
[1736264304607,2.84795,3511.3,3510.5,0.3686]
[1736264304835,0.03224215,3511.2,3510.6,0.0219776]
[1736264305002,0.55,3511.1,3510.0,0.3686]
[1736264305208,2.84859,3510.6,3510.0,0.3686]
[1736264305748,2.84884,3510.2,3510.1,0.0075]
[1736264305908,2.84884,3510.2,3509.1,0.3686]
[1736264305909,2.84906,3510.0,3509.1,0.3686]
[1736264306096,2.869578,3510.0,3509.2,0.02849337]
[1736264306297,2.84937,3509.6,3508.7,0.09556746]
[1736264306642,2.84937,3509.6,3509.2,0.58110689]
[1736264306795,3.43069155,3509.5,3509.4,0.00122393]
[1736264306997,6.43069155,3509.5,3509.4,0.00122393]
[1736264307597,1.5112,3509.2,3508.1,0.01]
[1736264307834,2.8503,3508.4,3508.1,0.01]
[1736264308095,0.27704896,3509.1,3508.1,0.01]
[1736264308307,0.29755696,3509.1,3508.1,0.01]
[1736264308539,0.27704896,3509.1,3508.3,0.3686]
[1736264309039,3.0,3508.6,3508.1,0.003496]
[1736264309249,2.85046,3508.2,3508.1,0.003496]
[1736264309404,2.85046,3508.3,3508.1,0.003496]
[1736264309604,2.88609415,3508.2,3508.1,0.003496]
[1736264309934,2.91479123,3508.2,3508.1,0.003496]
[1736264310134,0.02869708,3508.2,3508.1,0.003496]
[1736264310339,0.02869708,3508.2,3508.1,0.372096]
[1736264310643,0.03562445,3509.1,3508.2,0.0075]
[1736264311003,0.02869708,3509.0,3508.2,0.3527621]
[1736264311209,0.02869708,3509.0,3508.2,0.0157395]
[1736264311503,0.03562442,3509.4,3508.2,0.0157395]
[1736264311708,2.8494,3509.6,3508.2,0.0157395]
[1736264311930,0.06431846,3509.5,3508.2,2.86615342]
[1736264312149,2.91373846,3509.5,3508.2,2.85042]
[1736264312364,0.02869708,3509.5,3508.4,0.0075]
[1736264312510,0.02869708,3509.5,3508.5,0.3686]
[1736264312705,2.84889,3510.2,3508.5,0.3686]
[1736264312903,2.8496,3509.3,3508.5,0.3686]
[1736264313165,0.02869708,3509.2,3508.5,0.3686]
[1736264313336,0.02869708,3509.2,3508.7,0.0075]
[1736264313533,0.03561908,3509.6,3508.7,0.0075]
[1736264313808,2.84965,3509.2,3508.1,0.003496]
[1736264314009,6.58605197,3509.3,3508.1,0.003496]
[1736264314010,0.03563078,3509.1,3508.1,0.003496]
[1736264314209,2.85046,3508.2,3508.1,0.003496]
[1736264314447,2.85046,3508.2,3507.0,0.56574107]
[1736264314448,0.55,3508.1,3507.0,0.56574107]
[1736264314650,0.03563858,3508.0,3507.1,0.0075]
[1736264314819,0.06433566,3508.0,3507.2,0.3186]
[1736264315148,0.02869708,3508.0,3507.2,0.3186]
[1736264315312,0.02869708,3508.0,3507.2,0.312096]
[1736264315819,0.02869708,3508.0,3507.3,0.0075]
[1736264316008,0.03563091,3508.8,3507.3,0.0075]
[1736264316215,2.85038,3508.4,3507.3,0.0075]
[1736264316611,0.55,3508.1,3507.3,0.0075]
[1736264316850,2.85087,3507.8,3507.3,0.0075]
[1736264317021,0.0356387,3507.7,3507.3,0.0075]
[1736264317363,0.0356387,3507.7,3506.7,0.00636232]
[1736264317364,0.55,3507.5,3506.7,0.00636232]
[1736264317527,0.03564448,3507.4,3506.8,0.58012278]
[1736264317712,0.03564448,3507.4,3506.7,0.00636232]
[1736264317713,0.03564448,3507.4,3506.9,0.0075]
[1736264317913,0.02728507,3507.3,3506.9,0.0075]
[1736264318153,2.87849507,3507.3,3506.9,0.0075]
[1736264318374,0.03564473,3507.2,3506.7,0.00636232]
[1736264318579,2.87848507,3507.3,3506.7,0.00636232]
[1736264318715,0.0356428,3507.2,3506.7,0.01386232]
[1736264318915,4.66713704,3507.1,3506.1,0.1738932]
[1736264319155,2.85152,3506.9,3506.1,0.1738932]
[1736264319453,0.03565197,3506.8,3506.1,0.1738932]
[1736264319615,1.5544,3506.7,3506.1,0.1738932]
[1736264319819,0.03565283,3506.6,3506.3,0.0075]
[1736264320124,1.5544,3506.2,3506.0,0.003045]
[1736264320325,0.06222382,3506.1,3505.3,4.81955923]
[1736264320529,0.02656212,3506.1,3505.3,7.66581523]
[1736264320794,0.02656212,3506.1,3505.4,0.0075]
[1736264320994,0.03565085,3507.0,3505.5,0.48205552]
[1736264321184,0.03564607,3507.1,3505.8,0.56294791]
[1736264321708,0.03564883,3507.5,3505.8,0.56294791]
[1736264322005,1.5544,3507.7,3506.8,2.85157]
[1736264322305,0.03563623,3508.5,3507.4,2.85109]
[1736264322505,1.5956,3509.7,3507.5,0.3194]
[1736264322710,1.63121958,3509.7,3508.1,0.56152142]
[1736264322911,4.28503471,3509.6,3507.5,0.3119]
[1736264323068,2.8494,3509.5,3507.5,0.3119]
[1736264323269,4.08985197,3508.6,3507.5,0.3119]
[1736264323584,0.55,3508.3,3506.9,0.3119]
[1736264323798,3.4007,3507.9,3505.8,2.85234]
[1736264324006,3.4007,3507.9,3505.6,0.3119]
[1736264324007,0.55,3507.4,3505.9,0.30992]
[1736264324174,2.85161,3506.8,3505.6,0.3119]
[1736264324375,2.8518,3506.6,3506.0,0.56815846]
[1736264324590,2.85161,3506.8,3506.1,0.0075]
[1736264324790,0.03564817,3506.7,3506.1,0.0075]
[1736264325118,1.6397,3507.5,3505.7,2.85997]
[1736264325417,2.85156,3506.9,3505.8,0.36567755]
[1736264325613,2.85119,3507.3,3505.8,0.36567755]
[1736264325614,2.88726637,3506.8,3505.8,0.36567755]
[1736264325925,0.0356464,3506.7,3505.6,0.3119]
[1736264326093,2.85184,3506.6,3505.5,0.48490552]
[1736264326281,2.85155,3506.9,3505.5,3.33754552]
[1736264326486,2.85128,3507.2,3505.8,0.3119]
[1736264326677,0.03564688,3507.3,3505.9,0.0075]
[1736264327026,2.85127,3507.2,3505.9,0.0075]
[1736264327190,2.88682294,3507.4,3506.0,0.37499132]
[1736264327390,2.88682294,3507.4,3505.9,0.0075]
[1736264327391,2.85128,3507.2,3505.9,0.0075]
[1736264327583,2.85153,3506.9,3505.8,0.3119]
[1736264327779,0.55,3507.1,3505.8,0.3119]
[1736264327980,0.55,3507.1,3505.7,0.57814317]
[1736264327981,2.85055,3508.1,3506.6,2.85171]
[1736264328240,1.6544,3508.5,3506.4,0.3119]
[1736264328241,2.8508,3507.8,3506.4,0.3119]
[1736264328422,2.85089,3507.7,3506.4,3.6039552]
[1736264328620,0.0356368,3507.7,3506.4,0.7520752]
[1736264328921,0.0356368,3507.7,3506.5,2.85182]
[1736264329119,0.03563994,3508.0,3506.6,3.41437114]
[1736264329304,0.03563679,3508.2,3506.6,0.56268114]
[1736264329506,2.85069,3508.0,3506.8,2.85159]
[1736264329691,0.03563679,3508.2,3506.9,0.34142711]
[1736264329889,0.24999999,3510.1,3506.9,0.34142711]
[1736264329890,0.03563609,3508.8,3506.9,0.3119]
[1736264330110,2.85023,3508.5,3507.3,2.85112]
[1736264330321,2.85055,3508.1,3506.9,3.1634]
[1736264330629,4.35638,3508.2,3506.9,0.3119]
[1736264330821,0.03563752,3508.1,3506.9,0.3119]
[1736264331316,0.03563752,3508.1,3507.0,0.31635]
[1736264331479,0.03563752,3508.1,3506.9,0.3119]
[1736264331822,1.5059,3508.8,3506.9,0.3119]
[1736264331823,2.85079,3507.8,3506.9,0.3119]
[1736264332044,2.85064,3508.0,3506.9,3.16341]
[1736264332323,0.03563552,3507.9,3507.0,0.0075]
[1736264332495,2.85095,3507.6,3507.0,0.0075]
[1736264332700,2.8512,3507.3,3506.2,0.3119]
[1736264332900,2.8512,3507.3,3506.3,0.59215778]
[1736264333132,0.03564254,3507.2,3506.3,0.59215778]
[1736264333290,2.8512,3507.3,3506.3,0.59215778]
[1736264333482,2.88668255,3507.5,3506.3,3.44412778]
[1736264333683,1.5059,3507.6,3506.3,0.96776056]
[1736264333924,0.0356392,3508.6,3507.1,0.3119]
[1736264334097,2.85048,3508.2,3507.1,0.3119]
[1736264334300,2.88619362,3508.1,3507.2,0.5644519]
[1736264334626,2.85038,3508.3,3507.3,2.85867]
[1736264334831,2.85038,3508.3,3507.3,3.23217219]
[1736264335128,5.7015,3508.6,3507.4,2.85111]
[1736264335426,8.55166,3508.6,3507.2,0.5644519]
[1736264335628,2.87563637,3508.5,3507.3,2.85118]
[1736264335801,2.85039,3508.3,3507.2,0.5644519]
[1736264336001,0.03562952,3508.2,3507.2,0.5644519]
[1736264336199,2.85065,3508.0,3507.1,0.3119]
[1736264336727,2.91248438,3507.9,3507.1,0.0623]
[1736264336929,2.85097,3507.6,3507.1,0.0623]
[1736264337136,8.55247,3507.6,3506.8,0.56268246]
[1736264337341,0.55,3507.4,3505.8,4.08985197]
[1736264337486,0.03564448,3507.3,3505.2,4.08985197]
[1736264337690,2.85136,3507.1,3505.8,2.85239]
[1736264337933,8.55286,3507.1,3506.1,0.57238585]
[1736264338115,0.02586718,3507.0,3506.3,2.85199]
[1736264338315,0.02586718,3507.0,3506.1,0.57238585]
[1736264338916,0.02586718,3507.0,3506.2,2.85958]
[1736264339149,0.02586718,3507.0,3506.6,0.0075]
[1736264339308,5.7015,3507.1,3506.6,0.0075]
[1736264339520,5.7015,3507.1,3506.7,0.0623]
[1736264339842,0.02561718,3507.0,3506.8,0.0075]
[1736264340725,5.7015,3507.1,3506.8,0.0075]
[1736264340916,5.7015,3507.1,3506.8,0.3558859]
[1736264341239,5.694,3507.1,3506.6,0.56229896]
[1736264341467,2.85152,3506.9,3505.5,0.00285]
[1736264341739,5.694,3507.1,3505.7,0.57873811]
[1736264341940,5.694,3507.1,3505.8,2.85241]
[1736264342143,5.694,3507.1,3506.6,0.0075]
[1736264342346,5.694,3507.1,3506.7,0.56949109]
[1736264342516,5.694,3507.1,3505.9,0.77710001]
[1736264342844,0.02561718,3507.0,3505.9,2.85233]
[1736264343047,0.02561718,3507.0,3506.5,0.55847457]
[1736264343260,0.01811718,3507.0,3506.5,0.55847457]
[1736264343400,0.02536718,3507.0,3506.5,0.55847457]
[1736264343607,0.02536718,3507.0,3505.5,0.00285]
[1736264343806,0.02536718,3507.0,3506.4,0.56635166]
[1736264344041,5.694,3507.1,3505.5,0.94422572]
[1736264344239,0.02536718,3506.9,3505.5,0.94422572]
[1736264344501,2.85249,3505.7,3505.6,7.88e-06]
[1736264344775,2.84524,3505.4,3505.3,4.81305523]
[1736264345059,8.56460718,3505.4,3505.3,4.81305523]
[1736264345261,9.11460718,3505.4,3505.3,4.81305523]
[1736264345466,8.81357167,3505.4,3505.3,4.81305523]
[1736264345963,8.56460718,3505.4,3505.3,4.76305523]
[1736264346107,5.71936718,3505.4,3505.3,4.76305523]
[1736264346644,5.71186718,3505.4,3505.3,4.77055523]
[1736264346960,5.71186718,3505.4,3505.3,5.34209967]
[1736264347166,5.71186718,3505.4,3505.3,4.77055523]
[1736264347327,5.71186718,3505.4,3505.3,4.76305523]
[1736264347328,5.6865,3505.4,3505.3,4.76305523]
[1736264348068,5.678,3505.4,3505.3,4.76305523]
[1736264348365,8.53074,3505.4,3505.3,4.76305523]
[1736264348685,9.383814,3505.4,3505.3,4.76305523]
[1736264348953,8.53074,3505.4,3505.3,4.76305523]
[1736264349710,8.52324,3505.4,3505.3,4.76305523]
[1736264350423,13.59824,3505.4,3505.3,5.23e-06]
[1736264351033,1.5999,3505.0,3503.6,0.625]
[1736264351236,2.8539,3504.0,3502.1,1.75718158]
[1736264351438,4.08985197,3502.1,3499.1,6.95441763]
[1736264351639,0.55,3498.9,3493.2,1.47891864]
[1736264351839,4.13087567,3495.8,3493.4,1.144583]
[1736264352140,0.25,3494.0,3491.6,1.47321019]
[1736264352317,0.25,3494.0,3489.1,13.33926723]
[1736264352318,2.857,3491.0,3490.9,1.59315837]
[1736264352519,3.11574,3489.5,3489.1,13.09212172]
[1736264352811,3.11574,3489.5,3486.1,1.46748794]
[1736264352812,0.25,3488.1,3486.1,1.46748794]
[1736264353012,6.99858567,3487.1,3486.1,1.46748794]
[1736264353227,5.6705,3487.1,3486.1,1.46748794]
[1736264353563,5.6705,3487.1,3486.0,100.0]
[1736264353723,4.85093554,3487.1,3486.0,100.25]
[1736264354059,0.95733819,3488.6,3486.6,0.58039806]
[1736264354263,0.95733819,3488.6,3486.0,82.08072148]
[1736264354264,5.11853,3486.1,3486.0,82.08072148]
[1736264354431,2.86886,3485.7,3485.3,0.80217328]
[1736264354757,0.24999999,3486.1,3484.7,6.28e-06]
[1736264354960,0.25,3488.7,3486.2,1.5562]
[1736264355179,0.25,3488.7,3482.7,1.48122982]
[1736264355180,3.12125,3482.8,3482.4,0.25]
[1736264355459,2.86892,3485.7,3482.1,1.5562]
[1736264355682,0.00283,3483.9,3483.1,2.87098]
[1736264355855,1.48236117,3486.5,3480.9,0.15662706]
[1736264355856,0.25,3483.5,3480.9,0.15662706]
[1736264356159,0.41105886,3490.1,3478.9,1.148823]
[1736264356160,0.25,3483.4,3478.9,1.148823]
[1736264356319,1.5476,3480.9,3478.9,1.148823]
[1736264356516,0.25,3480.5,3479.6,5.06636562]
[1736264356726,4.35676024,3482.7,3480.4,35.0]
[1736264356727,0.24714,3482.6,3480.4,35.0]
[1736264357080,1.78909453,3483.2,3480.4,35.0]
[1736264357236,2.86994,3484.4,3480.6,2.87298]
[1736264357412,0.25,3484.2,3480.8,2.8729]
[1736264357618,0.10757846,3485.1,3484.1,35.0]
[1736264357860,1.48024026,3490.1,3484.3,0.25]
[1736264358156,2.86828,3486.4,3483.7,0.14759958]
[1736264358458,1.43811475,3488.3,3482.3,0.25]
[1736264358621,1.43052525,3486.0,3483.3,3.37081]
[1736264358820,2.86687,3488.2,3483.8,0.5]
[1736264359014,1.46025827,3489.4,3484.9,5.06636562]
[1736264359329,2.0,3490.1,3485.9,5.06636562]
[1736264359517,2.86557,3489.7,3485.7,0.25]
[1736264359713,5.73114,3489.7,3486.6,5.06636562]
[1736264360017,13.003,3490.6,3487.4,5.06636562]
[1736264360214,2.86612,3489.1,3488.2,5.06636562]
[1736264360456,2.86479,3490.7,3488.2,5.06636562]
[1736264360457,2.86479,3490.7,3488.2,4.11944266]
[1736264360623,2.86416,3491.5,3488.2,0.25]
[1736264360812,2.86498,3490.5,3487.8,0.25]
[1736264361047,2.86661,3488.5,3487.0,0.25]
[1736264361261,0.25,3490.3,3486.1,13.003]
[1736264361423,2.86672,3488.4,3486.7,0.25]
[1736264361777,0.580665,3490.2,3488.3,5.06636562]
[1736264361975,2.8653,3490.1,3488.6,0.25]
[1736264362176,0.580665,3490.2,3489.2,5.06636562]
[1736264362550,0.580665,3490.2,3488.4,5.06636562]
[1736264362875,0.580665,3490.2,3488.8,0.25]
[1736264363037,0.580665,3490.2,3487.9,0.25]
[1736264363242,2.86524,3490.1,3486.8,5.06636562]
[1736264363577,2.8683,3486.4,3485.3,0.25]
[1736264363781,2.86833,3486.4,3485.3,0.25]
[1736264363999,0.25,3490.0,3487.0,0.25]
[1736264364304,2.86643,3488.7,3487.4,0.25]
[1736264364435,5.06636562,3490.3,3485.5,5.31636562]
[1736264364752,5.06636562,3490.3,3484.8,14.608]
[1736264364753,2.86806,3486.7,3485.3,0.25]
[1736264364944,2.86565,3489.6,3485.9,0.25]
[1736264365139,2.86712,3487.9,3486.3,5.31636562]
[1736264365345,5.7344,3487.9,3486.6,0.25]
[1736264365566,5.7344,3487.9,3485.9,0.25]
[1736264365567,0.55,3486.8,3485.9,0.25]
[1736264365811,5.7344,3487.9,3485.4,0.25]
[1736264365971,5.7344,3487.9,3484.5,13.253]
[1736264365972,3.0,3487.5,3484.5,13.253]
[1736264366283,3.0,3487.5,3479.5,0.25]
[1736264366284,3.25,3484.5,3479.5,0.25]
[1736264366481,3.0,3479.4,3478.6,0.57670099]
[1736264366816,2.87355,3480.1,3478.0,0.57003659]
[1736264366939,5.06636562,3478.8,3478.7,0.443768]
[1736264367144,5.06636562,3480.4,3478.1,1.606]
[1736264367394,6.80105347,3481.9,3477.7,0.56400415]
[1736264367593,6.80105347,3481.9,3477.2,2.87583]
[1736264367594,6.80105347,3480.9,3477.2,13.003]
[1736264367741,12.54975347,3480.9,3477.4,0.57801206]
[1736264368077,2.8738,3479.8,3477.5,2.87562]
[1736264368236,2.87374,3479.8,3477.7,2.87541]
[1736264368437,2.8729,3480.8,3476.6,4.83126722]
[1736264368438,2.87338,3480.3,3476.6,4.83126722]
[1736264368642,3.12728,3475.5,3475.4,1.41904199]
[1736264368874,3.12728,3475.5,3469.1,6.80105347]
[1736264368875,0.25,3471.9,3470.7,0.14347767]
[1736264369047,1.5049,3473.3,3470.7,0.14347767]
[1736264369048,6.80105347,3472.3,3470.7,0.14347767]
[1736264369248,0.25,3471.7,3470.7,0.14347767]
[1736264369557,0.25,3470.3,3467.6,2.8838]
[1736264369755,0.25,3467.1,3466.3,0.10870331]
[1736264369968,1.5049,3470.1,3463.2,3.0]
[1736264369969,0.25,3465.7,3463.2,2.15690315]
[1736264370176,6.80105347,3463.3,3463.2,2.15690315]
[1736264370373,0.5,3463.0,3462.9,0.2797112]
[1736264370577,0.5,3463.0,3460.0,9.74e-06]
[1736264370578,2.89008,3460.1,3460.0,9.74e-06]
[1736264370756,0.19239888,3460.3,3459.3,0.56327977]
[1736264370955,0.19239888,3458.5,3458.3,0.01446]
[1736264371182,0.25,3459.3,3458.1,33.01306703]
[1736264371183,0.19239888,3459.0,3458.1,33.01306703]
[1736264371353,0.25,3462.4,3455.2,2.80328672]
[1736264371354,0.20107802,3458.2,3455.2,2.27823176]
[1736264371668,1.41111934,3458.6,3455.2,2.27823176]
[1736264371867,0.02207802,3457.8,3455.2,1.44068972]
[1736264372086,2.0,3455.7,3454.9,1.84832939]
[1736264372246,0.44022,3454.1,3452.9,3.68291987]
[1736264372447,0.44022,3454.1,3453.0,0.25]
[1736264372448,0.02207802,3453.1,3453.0,0.25]
[1736264372652,0.44022,3454.1,3451.6,1.5438]
[1736264372848,1.49469139,3457.6,3451.5,1.609]
[1736264372849,0.30435323,3461.3,3453.8,1.69438674]
[1736264373085,4.37001687,3465.6,3455.4,0.25]
[1736264373086,1.47145784,3460.8,3455.4,0.25]
[1736264373265,16.94905347,3460.7,3455.4,0.25]
[1736264373486,16.94905347,3460.7,3451.0,1.46798744]
[1736264373487,2.89173,3458.2,3457.2,0.25]
[1736264373666,0.26549759,3460.6,3456.2,0.25]
[1736264373843,0.1124,3460.8,3453.2,0.25]
[1736264374208,0.1124,3460.8,3451.9,0.56460337]
[1736264374209,2.89247,3457.3,3452.0,0.25]
[1736264374388,5.7854,3457.3,3452.0,0.25]
[1736264374595,0.65609,3453.1,3451.4,0.00789425]
[1736264374768,5.7854,3453.1,3451.4,0.00789425]
[1736264374973,5.0,3453.0,3448.8,0.25]
[1736264375167,0.4419071,3454.4,3448.4,1.41833989]
[1736264375369,2.89714,3451.7,3448.7,2.89961]
[1736264375568,6.80105347,3455.1,3446.9,1.5765]
[1736264375569,1.471497,3455.9,3446.9,1.5765]
[1736264375821,2.89557,3453.6,3449.0,0.43096135]
[1736264376091,5.792,3453.6,3449.2,2.89922]
[1736264376246,5.792,3453.6,3449.1,1.616]
[1736264376247,0.54858679,3455.8,3449.3,1.5765]
[1736264376447,9.05105347,3459.2,3451.4,0.25]
[1736264376687,0.26942361,3459.8,3453.3,6.80105347]